bitfinex-derivatives/quotes_BTCF0:USTF0_20220103
["timestamp","ask_amount","ask_price","bid_price","bid_amount"]
[1641203139642,0.14033567,46886.0,46877.0,0.26052533]
[1641203140442,0.14033567,46886.0,46877.0,0.45352533]
[1641203141544,0.32033567,46886.0,46877.0,0.45352533]
[1641203141745,0.14033567,46886.0,46877.0,0.26052533]
[1641203141946,0.32033567,46886.0,46877.0,0.26052533]
[1641203142346,0.14033567,46886.0,46877.0,0.45352533]
[1641203143750,0.14033567,46886.0,46877.0,0.26052533]
[1641203144448,0.14033567,46886.0,46877.0,0.45352533]
[1641203144648,0.14033567,46886.0,46878.0,0.317828]
[1641203145251,0.14033567,46886.0,46877.0,0.45352533]
[1641203145862,0.14033567,46886.0,46877.0,0.26052533]
[1641203146461,0.14033567,46886.0,46878.0,0.319587]
[1641203146862,0.14033567,46886.0,46877.0,0.45352533]
[1641203147162,0.32033567,46886.0,46877.0,0.45352533]
[1641203147462,0.14033567,46886.0,46877.0,0.45352533]
[1641203147861,0.18,46884.0,46877.0,0.26052533]
[1641203148062,0.22081567,46886.0,46877.0,0.26052533]
[1641203148464,0.22081567,46886.0,46877.0,0.45452533]
[1641203149364,0.40081567,46886.0,46877.0,0.45452533]
[1641203149562,0.22081567,46886.0,46877.0,0.45452533]
[1641203149763,0.40081567,46886.0,46877.0,0.26052533]
[1641203150067,0.22081567,46886.0,46877.0,0.26052533]
[1641203150263,0.40081567,46886.0,46877.0,0.26052533]
[1641203150463,0.18,46885.0,46877.0,0.45452533]
[1641203150963,0.22081567,46886.0,46877.0,0.45452533]
[1641203151164,0.18,46885.0,46877.0,0.194]
[1641203151764,0.22081567,46886.0,46876.0,0.009794]
[1641203152363,0.22081567,46886.0,46876.0,0.203794]
[1641203153768,0.14033567,46886.0,46876.0,0.009794]
[1641203154468,0.14033567,46886.0,46876.0,0.203794]
[1641203155270,0.14033567,46886.0,46876.0,0.41480333]
[1641203155472,0.14033567,46886.0,46877.0,0.318165]
[1641203155671,0.14033567,46886.0,46876.0,0.22080333]
[1641203156474,0.14033567,46886.0,46876.0,0.41480333]
[1641203157675,0.14033567,46886.0,46876.0,0.22080333]
[1641203158375,0.14033567,46886.0,46876.0,0.41480333]
[1641203159777,0.14033567,46886.0,46876.0,0.22080333]
[1641203160478,0.14033567,46886.0,46876.0,0.41480333]
[1641203161178,1.20900201,46880.0,46879.0,0.35757937]
[1641203162380,1.20900201,46880.0,46879.0,0.55157937]
[1641203163680,1.20900201,46880.0,46879.0,0.35757937]
[1641203164383,1.20900201,46880.0,46879.0,0.55157937]
[1641203166489,1.20900201,46880.0,46879.0,0.194]
[1641203167189,1.20900201,46880.0,46879.0,1.75802079]
[1641203167789,0.782385,46880.0,46879.0,1.56402079]
[1641203167989,1.32979051,46884.0,46879.0,0.91436952]
[1641203168193,0.14033567,46886.0,46879.0,0.91436952]
[1641203168194,1.32979051,46882.0,46879.0,0.67634748]
[1641203168391,1.32979051,46882.0,46879.0,0.87234748]
[1641203168894,1.32979051,46882.0,46880.0,0.02132978]
[1641203169292,1.59234411,46886.0,46881.0,0.91376352]
[1641203169293,1.47012618,46886.0,46881.0,0.91376352]
[1641203170394,1.47012618,46886.0,46881.0,1.10276352]
[1641203170996,1.47012618,46886.0,46883.0,0.35748471]
[1641203171394,1.47012618,46886.0,46884.0,0.35748471]
[1641203171395,0.14033567,46886.0,46884.0,0.35748471]
[1641203171595,0.14033567,46886.0,46884.0,0.44960471]
[1641203172395,0.14033567,46886.0,46884.0,0.63860471]
[1641203173798,0.14033567,46886.0,46884.0,0.44960471]
[1641203174399,0.14033567,46886.0,46884.0,0.63860471]
[1641203174803,1.32979051,46887.0,46884.0,0.63860471]
[1641203175002,1.45200844,46891.0,46889.0,0.09699546]
[1641203175403,1.45200844,46891.0,46890.0,0.35357398]
[1641203175602,1.57310694,46898.0,46890.0,0.53357398]
[1641203175801,1.57310694,46898.0,46890.0,0.35357398]
[1641203176002,1.57310694,46901.0,46890.0,0.35257398]
[1641203176501,1.57310694,46901.0,46890.0,0.54557398]
[1641203176704,1.71344261,46901.0,46891.0,0.14033567]
[1641203176907,0.14033567,46901.0,46893.0,0.35660129]
[1641203177105,1.57310694,46907.0,46896.0,0.8]
[1641203177309,1.57310694,46907.0,46900.0,0.02132009]
[1641203177705,1.57310694,46907.0,46904.0,0.20131886]
[1641203177903,1.57310694,46907.0,46905.0,0.009794]
[1641203178103,1.57310694,46907.0,46905.0,0.010658]
[1641203178505,1.9147,46912.0,46905.0,0.206658]
[1641203178703,1.57310694,46914.0,46910.0,0.14033567]
[1641203178906,1.57310694,46914.0,46910.0,0.19866567]
[1641203179715,1.57310694,46917.0,46910.0,0.19866567]
[1641203180518,1.57310694,46917.0,46910.0,0.38866567]
[1641203181720,1.57310694,46917.0,46910.0,0.19866567]
[1641203181920,1.57310694,46916.0,46910.0,0.19866567]
[1641203182524,1.57310694,46916.0,46910.0,0.38766567]
[1641203183722,1.57310694,46916.0,46910.0,0.19866567]
[1641203184524,1.57310694,46916.0,46910.0,0.32933567]
[1641203185326,1.63125694,46916.0,46910.0,0.32933567]
[1641203185727,1.63125694,46916.0,46910.0,0.14033567]
[1641203186525,1.65257852,46916.0,46910.0,0.24633567]
[1641203186725,1.57310694,46912.0,46910.0,0.24633567]
[1641203186927,0.18,46911.0,46910.0,0.24633567]
[1641203187124,1.57310694,46912.0,46910.0,0.24633567]
[1641203187627,0.18,46911.0,46910.0,0.106]
[1641203187825,1.57310694,46912.0,46905.0,0.009794]
[1641203188024,0.18,46910.0,46905.0,0.009794]
[1641203188427,0.18,46910.0,46905.0,0.188794]
[1641203188826,0.14033567,46911.0,46905.0,0.188794]
[1641203189227,0.18,46910.0,46905.0,0.188794]
[1641203191830,0.18,46910.0,46905.0,0.009794]
[1641203192432,0.18,46910.0,46905.0,0.188794]
[1641203192833,0.18,46909.0,46905.0,0.188794]
[1641203193934,0.18,46909.0,46905.0,0.009794]
[1641203194536,0.18,46909.0,46905.0,0.190794]
[1641203194737,0.14033567,46911.0,46905.0,0.190794]
[1641203194937,0.18,46909.0,46905.0,0.190794]
[1641203195638,0.14033567,46911.0,46905.0,0.190794]
[1641203195839,0.14033567,46911.0,46905.0,0.009794]
[1641203196540,0.14033567,46911.0,46905.0,0.268004]
[1641203196940,1.32747383,46913.0,46908.0,0.14033567]
[1641203197142,1.32747383,46916.0,46908.0,0.14033567]
[1641203197542,1.32747383,46916.0,46909.0,0.319681]
[1641203197841,1.32747383,46916.0,46908.0,0.14033567]
[1641203198442,1.44815327,46919.0,46908.0,0.33033567]
[1641203198443,1.50747383,46919.0,46908.0,0.33033567]
[1641203198642,0.18,46918.0,46909.0,0.319338]
[1641203199043,0.18,46918.0,46908.0,0.33033567]
[1641203199844,0.18,46918.0,46908.0,0.14033567]
[1641203200445,0.18,46918.0,46908.0,0.33133567]
[1641203200648,0.18,46915.0,46908.0,0.33133567]
[1641203201448,0.18,46912.0,46908.0,0.33133567]
[1641203201845,0.18,46912.0,46908.0,0.14033567]
[1641203202145,1.32747383,46918.0,46908.0,0.14033567]
[1641203202345,0.18,46915.0,46908.0,0.14033567]
[1641203202546,0.18,46915.0,46908.0,0.32633567]
[1641203203348,0.18,46912.0,46908.0,0.32633567]
[1641203203546,1.43075871,46920.0,46908.0,0.32633567]
[1641203203746,0.18,46915.0,46908.0,0.14033567]
[1641203203947,0.18,46911.0,46908.0,0.14033567]
[1641203204150,0.18,46911.0,46905.0,0.009794]
[1641203204447,0.18,46908.0,46905.0,0.009794]
[1641203205951,0.14033567,46911.0,46905.0,0.009794]
[1641203206551,0.14033567,46911.0,46905.0,0.192794]
[1641203208453,0.14033567,46911.0,46905.0,0.375794]
[1641203210051,0.14033567,46911.0,46905.0,0.009794]
[1641203210452,0.14033567,46911.0,46905.0,0.191794]
[1641203210851,1.32747383,46906.0,46905.0,0.191794]
[1641203211753,1.32747383,46906.0,46905.0,0.009794]
[1641203212154,1.32747383,46907.0,46905.0,0.009794]
[1641203212454,1.32747383,46907.0,46905.0,0.199794]
[1641203213755,1.32747383,46907.0,46905.0,0.009794]
[1641203214559,1.32747383,46907.0,46905.0,0.200794]
[1641203215460,1.32747383,46906.0,46905.0,0.200794]
[1641203215859,1.32747383,46906.0,46905.0,0.009794]
[1641203216462,1.32747383,46906.0,46905.0,0.197794]
[1641203217562,1.32747383,46906.0,46905.0,0.188]
[1641203217762,1.32747383,46906.0,46902.0,0.35660129]
[1641203218366,0.18,46904.0,46902.0,0.35660129]
[1641203218563,0.18,46904.0,46899.0,0.83250451]
[1641203218765,0.20132904,46900.0,46899.0,0.59250617]
[1641203219164,0.20232904,46900.0,46899.0,0.59250617]
[1641203219566,0.02232904,46900.0,46899.0,0.59250617]
[1641203219965,0.02232904,46900.0,46898.0,0.83250451]
[1641203220165,0.001,46899.0,46892.0,2.78274018]
[1641203220366,0.18,46897.0,46892.0,0.97284018]
[1641203220966,1.2092652,46894.0,46893.0,0.96776678]
[1641203222171,1.2092652,46894.0,46892.0,0.14033567]
[1641203222473,1.4002652,46894.0,46892.0,0.14033567]
[1641203222973,1.4002652,46894.0,46893.0,0.96775601]
[1641203223773,1.2092652,46894.0,46893.0,0.96775601]
[1641203224574,1.3992652,46894.0,46893.0,0.96775601]
[1641203224974,1.3992652,46894.0,46892.0,0.14033567]
[1641203225380,0.19,46894.0,46892.0,0.14033567]
[1641203225777,1.33019172,46896.0,46892.0,0.14033567]
[1641203225977,1.33019172,46896.0,46892.0,0.20459567]
[1641203226377,1.51919172,46896.0,46892.0,0.20459567]
[1641203227780,1.33019172,46896.0,46892.0,0.20459567]
[1641203227991,1.20927902,46893.0,46892.0,0.20459567]
[1641203228388,1.40427902,46893.0,46892.0,0.20459567]
[1641203228790,0.195,46893.0,46892.0,1.76578771]
[1641203229690,0.195,46893.0,46892.0,1.17236351]
[1641203229890,1.20927902,46895.0,46892.0,2.00486802]
[1641203230294,1.20927902,46895.0,46894.0,0.37229855]
[1641203230493,1.40327902,46895.0,46894.0,0.37229855]
[1641203230691,1.20927902,46896.0,46894.0,0.87251331]
[1641203230891,0.85831886,46896.0,46895.0,0.18]
[1641203231195,0.76351886,46896.0,46895.0,0.321151]
[1641203231492,1.33019172,46900.0,46895.0,0.321151]
[1641203231493,1.20909948,46900.0,46895.0,0.44209297]
[1641203231691,1.20909948,46900.0,46896.0,0.18]
[1641203231895,1.20909948,46900.0,46896.0,0.12094197]
[1641203232094,1.20909948,46900.0,46897.0,0.317123]
[1641203232492,0.14033567,46901.0,46896.0,0.192]
[1641203233094,0.14033567,46901.0,46898.0,0.82930492]
[1641203233894,0.14033567,46901.0,46900.0,0.35578304]
[1641203234393,0.14033567,46901.0,46900.0,0.54578304]
[1641203235800,0.14033567,46901.0,46900.0,0.35578304]
[1641203236401,0.14033567,46901.0,46900.0,0.54278304]
[1641203236903,0.14033567,46901.0,46900.0,0.187]
[1641203237803,0.14033567,46901.0,46899.0,0.35578304]
[1641203238505,0.14033567,46901.0,46899.0,0.54078304]
[1641203239908,0.14033567,46901.0,46899.0,0.35578304]
[1641203240515,0.14033567,46901.0,46899.0,0.55078304]
[1641203240912,0.14033567,46901.0,46899.0,0.195]
[1641203241913,0.14033567,46901.0,46896.0,0.35578304]
[1641203242513,0.14033567,46901.0,46896.0,0.54778304]
[1641203243414,0.14033567,46901.0,46896.0,0.192]
[1641203243815,0.14033567,46901.0,46893.0,0.35578304]
[1641203244415,0.14033567,46901.0,46894.0,0.35578304]
[1641203244615,0.14033567,46901.0,46894.0,0.42452304]
[1641203245215,0.14033567,46901.0,46895.0,0.35578304]
[1641203246418,0.14033567,46901.0,46895.0,0.54678304]
[1641203246818,0.14033567,46901.0,46895.0,0.191]
[1641203247818,0.14033567,46901.0,46893.0,0.35578304]
[1641203248024,0.14033567,46901.0,46894.0,0.35578304]
[1641203249025,0.14033567,46901.0,46893.0,0.54878304]
[1641203249826,1.32987292,46900.0,46894.0,0.35578304]
[1641203250426,1.32987292,46900.0,46894.0,0.54778304]
[1641203251427,1.32987292,46899.0,46894.0,0.192]
[1641203252030,1.32987292,46899.0,46893.0,0.35578304]
[1641203252429,1.32987292,46899.0,46894.0,0.191]
[1641203253132,1.32987292,46898.0,46894.0,0.191]
[1641203253831,1.32987292,46898.0,46892.0,0.59055271]
[1641203254446,1.32987292,46898.0,46892.0,0.78455271]
[1641203255847,1.32987292,46898.0,46892.0,0.59055271]
[1641203256048,1.44815327,46899.0,46895.0,0.35578304]
[1641203256448,1.44815327,46898.0,46895.0,0.35578304]
[1641203258252,1.44815327,46899.0,46895.0,0.35578304]
[1641203258452,1.44815327,46899.0,46895.0,0.54278304]
[1641203259254,1.44815327,46899.0,46896.0,0.35578304]
[1641203259954,1.44815327,46900.0,46896.0,0.35578304]
[1641203260555,1.44815327,46900.0,46896.0,0.53878304]
[1641203260853,0.14033567,46901.0,46896.0,0.183]
[1641203261358,1.44815327,46902.0,46897.0,2.56641987]
[1641203261553,1.44815327,46902.0,46897.0,2.88725787]
[1641203261753,1.44815327,46902.0,46901.0,0.14033567]
[1641203262555,3.02126021,46909.0,46901.0,0.33233567]
[1641203262755,1.44815327,46909.0,46901.0,0.68811871]
[1641203263256,0.18,46907.0,46901.0,0.68811871]
[1641203263454,0.18,46906.0,46901.0,0.68811871]
[1641203263657,0.02132561,46907.0,46901.0,0.68811871]
[1641203263854,0.02132561,46907.0,46901.0,0.49611871]
[1641203264256,0.18,46903.0,46901.0,0.49611871]
[1641203264456,0.18,46903.0,46901.0,0.66511871]
[1641203264756,0.18,46903.0,46901.0,0.30933567]
[1641203265155,1.44815327,46905.0,46901.0,0.30933567]
[1641203265358,0.18,46903.0,46901.0,0.30933567]
[1641203265559,1.62815327,46903.0,46901.0,0.30933567]
[1641203265957,1.62815327,46903.0,46901.0,0.14033567]
[1641203266960,0.18,46903.0,46901.0,0.14033567]
[1641203267160,0.06,46903.0,46901.0,0.14033567]
[1641203267360,0.02132776,46902.0,46901.0,0.14033567]
[1641203268461,0.02132776,46902.0,46901.0,0.27433567]
[1641203269766,0.02132776,46902.0,46901.0,0.14033567]
[1641203270562,0.02132776,46902.0,46901.0,0.30133567]
[1641203271762,0.02132776,46902.0,46901.0,0.14033567]
[1641203272561,0.02132776,46902.0,46901.0,0.29333567]
[1641203273864,0.02132776,46902.0,46901.0,0.14033567]
[1641203274266,0.02232776,46902.0,46901.0,0.14033567]
[1641203274465,0.02132776,46902.0,46901.0,0.30533567]
[1641203275867,0.02132776,46902.0,46901.0,0.14033567]
[1641203276069,1.44815327,46903.0,46901.0,0.14033567]
[1641203276269,1.44815327,46904.0,46901.0,0.14033567]
[1641203276467,1.44815327,46904.0,46901.0,0.33133567]
[1641203277467,1.32984733,46906.0,46901.0,0.33133567]
[1641203277868,1.32984733,46906.0,46901.0,0.14033567]
[1641203278469,1.32984733,46906.0,46901.0,0.33333567]
[1641203279871,1.32984733,46905.0,46901.0,0.14033567]
[1641203280472,1.32984733,46905.0,46901.0,0.33533567]
[1641203281874,1.32984733,46905.0,46901.0,0.14033567]
[1641203282273,1.32984733,46906.0,46901.0,0.14033567]
[1641203282573,1.32984733,46906.0,46901.0,0.33533567]
[1641203282975,1.32984733,46905.0,46901.0,0.33533567]
[1641203283775,1.44815327,46909.0,46901.0,0.33533567]
[1641203283776,1.32984733,46906.0,46901.0,0.33533567]
[1641203283976,1.32984733,46906.0,46901.0,0.14033567]
[1641203284575,1.32984733,46906.0,46901.0,0.33333567]
[1641203285774,1.32984733,46906.0,46901.0,0.14033567]
[1641203286176,1.32984733,46906.0,46901.0,0.21992567]
[1641203286475,1.58848894,46910.0,46901.0,0.41392567]
[1641203286476,1.32984733,46907.0,46901.0,0.41392567]
[1641203287677,1.32984733,46909.0,46901.0,0.41392567]
[1641203287877,1.32984733,46909.0,46901.0,0.21992567]
[1641203288578,1.32984733,46909.0,46901.0,0.40992567]
[1641203289779,1.32984733,46909.0,46901.0,0.21992567]
[1641203290478,1.32984733,46909.0,46901.0,0.40992567]
[1641203291078,1.32984733,46909.0,46901.0,0.33033567]
[1641203291479,1.32984733,46908.0,46901.0,0.33033567]
[1641203291678,0.18,46907.0,46901.0,0.33033567]
[1641203291878,0.18,46907.0,46901.0,0.14033567]
[1641203292078,1.50984733,46908.0,46901.0,0.14033567]
[1641203292280,1.118,46907.0,46901.0,0.14033567]
[1641203292483,1.118,46907.0,46901.0,0.189]
[1641203293181,0.18,46905.0,46901.0,0.189]
[1641203293384,1.50984733,46905.0,46901.0,0.189]
[1641203293582,1.32984733,46905.0,46901.0,0.189]
[1641203293780,1.32984733,46905.0,46895.0,0.009794]
[1641203294381,1.32984733,46903.0,46895.0,0.009794]
[1641203294680,1.32984733,46903.0,46895.0,0.203794]
[1641203295682,1.20844925,46901.0,46895.0,0.203794]
[1641203296483,1.20844925,46900.0,46895.0,0.207794]
[1641203297283,1.20844925,46901.0,46895.0,0.207794]
[1641203297889,1.20844925,46901.0,46893.0,0.35578304]
[1641203298487,1.20844925,46901.0,46893.0,0.54878304]
[1641203298889,1.38844925,46900.0,46893.0,0.54878304]
[1641203299088,0.20133023,46897.0,46893.0,0.54878304]
[1641203299789,1.20844925,46896.0,46889.0,0.35578304]
[1641203299990,0.14033567,46894.0,46889.0,0.35578304]
[1641203300588,0.14033567,46894.0,46889.0,0.192]
[1641203300791,1.34878492,46894.0,46889.0,0.192]
[1641203301788,1.34878492,46894.0,46887.0,0.49611871]
[1641203302592,1.34878492,46894.0,46887.0,0.68811871]
[1641203303801,1.34878492,46894.0,46887.0,0.49611871]
[1641203304000,1.34878492,46894.0,46887.0,0.14033567]
[1641203304201,1.20844925,46893.0,46887.0,0.14033567]
[1641203304701,1.20844925,46893.0,46887.0,0.33233567]
[1641203305704,0.14033567,46894.0,46892.0,0.35578304]
[1641203306505,0.14033567,46894.0,46892.0,0.53978304]
[1641203306707,0.14033567,46894.0,46893.0,0.35578304]
[1641203308506,0.14033567,46894.0,46893.0,0.53078304]
[1641203309711,0.14033567,46894.0,46893.0,0.35578304]
[1641203310413,0.14033567,46894.0,46893.0,0.53078304]
[1641203311810,0.14033567,46894.0,46893.0,0.35578304]
[1641203312213,0.14033567,46894.0,46887.0,0.15012967]
[1641203312412,0.14033567,46894.0,46893.0,0.174]
[1641203314514,0.14033567,46894.0,46893.0,0.181]
[1641203315520,0.14033567,46894.0,46893.0,0.26477]
[1641203315715,0.14033567,46894.0,46893.0,0.08377]
[1641203316116,0.02132772,46902.0,46893.0,0.08377]
[1641203316516,0.02132772,46902.0,46893.0,0.27677]
[1641203317820,0.02132772,46902.0,46893.0,0.08377]
[1641203318518,0.02132772,46902.0,46893.0,0.27977]
[1641203319823,0.02132772,46902.0,46893.0,0.08377]
[1641203320320,0.14033567,46905.0,46893.0,0.08377]
[1641203320622,0.14033567,46905.0,46894.0,0.320185]
[1641203320821,0.14033567,46905.0,46894.0,0.395555]
[1641203322022,1.2079636,46903.0,46894.0,0.395555]
[1641203322622,1.2079636,46903.0,46894.0,0.588555]
[1641203323924,1.2079636,46903.0,46894.0,0.48106095]
[1641203324624,1.2079636,46903.0,46894.0,0.67506095]
[1641203325124,1.2079636,46903.0,46894.0,0.35487595]
[1641203325325,1.2079636,46903.0,46894.0,0.27950595]
[1641203325828,1.2079636,46903.0,46894.0,0.08550595]
[1641203326226,1.2079636,46902.0,46894.0,0.08550595]
[1641203326626,1.2079636,46902.0,46894.0,0.27850595]
[1641203327829,1.44815327,46901.0,46898.0,0.35578304]
[1641203328629,1.44815327,46901.0,46898.0,0.54778304]
[1641203329931,1.44815327,46901.0,46898.0,0.35578304]
[1641203330534,1.44815327,46901.0,46898.0,0.54778304]
[1641203331832,1.44815327,46901.0,46898.0,0.35578304]
[1641203332435,1.44815327,46902.0,46899.0,0.35578304]
[1641203333638,1.44815327,46903.0,46900.0,0.35578304]
[1641203334635,1.44815327,46901.0,46900.0,0.191]
[1641203336036,1.44815327,46901.0,46899.0,0.009794]
[1641203336239,1.44815327,46902.0,46899.0,0.36557704]
[1641203336637,1.44815327,46902.0,46899.0,0.55957704]
[1641203337838,1.44815327,46903.0,46900.0,0.35578304]
[1641203338538,0.14033567,46905.0,46900.0,0.195]
[1641203339841,0.14033567,46905.0,46894.0,0.08550595]
[1641203340041,0.21887567,46905.0,46894.0,0.08550595]
[1641203340642,0.21887567,46905.0,46894.0,0.28150595]
[1641203341142,1.118,46904.0,46894.0,0.28150595]
[1641203341446,0.001,46899.0,46894.0,0.196]
[1641203341640,0.001,46895.0,46894.0,0.196]
[1641203341841,0.001,46895.0,46891.0,0.59297173]
[1641203341842,0.08091,46895.0,46890.0,0.35578304]
[1641203342041,0.001,46891.0,46890.0,0.35578304]
[1641203342641,0.001,46891.0,46890.0,0.54578304]
[1641203342843,0.001,46891.0,46890.0,0.19]
[1641203343947,0.001,46891.0,46887.0,0.49611871]
[1641203344144,0.22024567,46895.0,46887.0,0.49611871]
[1641203344549,1.54997169,46895.0,46887.0,0.33133567]
[1641203344745,1.54997169,46895.0,46887.0,0.191]
[1641203345746,1.32972602,46893.0,46887.0,0.191]
[1641203345947,1.32972602,46893.0,46884.0,0.35578304]
[1641203346549,0.14033567,46890.0,46884.0,0.54378304]
[1641203346949,0.14033567,46890.0,46884.0,0.188]
[1641203347950,0.14033567,46890.0,46881.0,0.35578304]
[1641203348551,0.14033567,46890.0,46881.0,0.54578304]
[1641203348751,0.14033567,46890.0,46882.0,0.35578304]
[1641203349554,0.14033567,46890.0,46883.0,0.35578304]
[1641203349955,0.18,46889.0,46883.0,0.35578304]
[1641203350154,0.26777,46889.0,46883.0,0.35578304]
[1641203350356,0.26777,46889.0,46880.0,0.82930492]
[1641203350357,0.26777,46889.0,46882.0,0.35578304]
[1641203350554,1.44815327,46895.0,46883.0,0.18]
[1641203350758,0.53410695,46902.0,46894.0,0.38131892]
[1641203350956,0.02132422,46910.0,46901.0,0.36]
[1641203351155,1.69395826,46912.0,46907.0,0.36]
[1641203351354,1.69395826,46912.0,46907.0,0.45083]
[1641203351355,0.31780085,46908.0,46907.0,0.45083]
[1641203351555,0.10818022,46908.0,46907.0,1.578971]
[1641203351771,0.10818022,46908.0,46907.0,1.60028535]
[1641203352154,0.07688022,46908.0,46907.0,1.60028535]
[1641203352556,0.07688022,46908.0,46907.0,2.21629236]
[1641203352758,1.69395826,46911.0,46907.0,2.29989188]
[1641203352955,1.81513978,46922.0,46910.0,0.361]
[1641203353161,3.7243,46935.0,46921.0,0.18]
[1641203353362,1.118,46937.0,46923.0,0.18]
[1641203354061,1.118,46937.0,46921.0,0.08553]
[1641203354462,1.118,46937.0,46926.0,0.18]
[1641203354662,0.001,46932.0,46927.0,0.14033567]
[1641203354863,0.001,46928.0,46927.0,0.14033567]
[1641203355563,0.14033567,46938.0,46927.0,0.14033567]
[1641203355764,1.118,46937.0,46927.0,0.14033567]
[1641203355962,1.118,46937.0,46927.0,0.32033567]
[1641203356162,1.118,46937.0,46927.0,0.14033567]
[1641203356363,0.14033567,46938.0,46927.0,0.14033567]
[1641203356563,1.69395826,46941.0,46937.0,0.18]
[1641203356767,1.69395826,46942.0,46937.0,0.0751]
[1641203357265,0.02131078,46939.0,46937.0,0.0751]
[1641203357464,0.001,46938.0,46937.0,0.0751]
[1641203358264,0.001,46938.0,46936.0,0.14033567]
[1641203358464,0.001,46937.0,46936.0,0.14033567]
[1641203362773,0.001,46937.0,46936.0,0.17833567]
[1641203363173,0.02231188,46937.0,46936.0,0.17833567]
[1641203363975,0.02231188,46937.0,46936.0,0.14033567]
[1641203364375,0.02231188,46937.0,46927.0,0.14033567]
[1641203364575,0.02131188,46937.0,46927.0,0.14033567]
[1641203364779,1.118,46936.0,46927.0,0.14033567]
[1641203366377,0.02131607,46928.0,46927.0,0.14033567]
[1641203366578,0.08681607,46928.0,46927.0,0.14033567]
[1641203366878,0.08681607,46928.0,46927.0,0.144]
[1641203367978,0.08681607,46928.0,46924.0,0.18]
[1641203368778,0.0655,46928.0,46924.0,0.359]
[1641203369180,0.0655,46928.0,46927.0,0.18]
[1641203369582,0.0655,46928.0,46924.0,0.179]
[1641203370783,0.0655,46928.0,46924.0,0.358]
[1641203371881,0.0655,46928.0,46922.0,0.14033567]
[1641203372084,0.0802,46928.0,46922.0,0.14033567]
[1641203372685,0.0802,46928.0,46922.0,0.32333567]
[1641203373085,0.0802,46928.0,46924.0,0.18]
[1641203373284,0.02131483,46930.0,46922.0,0.32333567]
[1641203373684,0.02131587,46928.0,46922.0,0.32333567]
[1641203374085,0.02131587,46928.0,46922.0,0.14033567]
[1641203374687,0.02131587,46928.0,46922.0,0.30433567]
[1641203375388,1.25833567,46932.0,46922.0,0.30433567]
[1641203375587,1.22465149,46932.0,46922.0,0.30433567]
[1641203376185,1.22465149,46932.0,46922.0,0.14033567]
[1641203376586,0.02131676,46927.0,46922.0,0.14033567]
[1641203376885,0.02131676,46927.0,46922.0,0.30833567]
[1641203378087,0.02131676,46927.0,46922.0,0.14033567]
[1641203378687,0.02131676,46927.0,46922.0,0.30833567]
[1641203379690,0.10665149,46932.0,46922.0,0.30833567]
[1641203379890,0.10665149,46932.0,46925.0,0.18]
[1641203380091,0.10665149,46932.0,46922.0,0.30833567]
[1641203380791,0.10665149,46932.0,46922.0,0.48933567]
[1641203382291,0.10665149,46932.0,46926.0,0.18]
[1641203382493,3.4300681,46943.0,46931.0,0.36]
[1641203382494,1.5679681,46943.0,46931.0,0.36]
[1641203382693,1.5679681,46943.0,46942.0,0.36]
[1641203382894,1.9276681,46944.0,46942.0,0.26561]
[1641203383094,1.5879681,46944.0,46943.0,0.42100701]
[1641203383592,1.5879681,46944.0,46943.0,0.60100701]
[1641203384393,0.02,46944.0,46943.0,0.60100701]
[1641203384793,0.02,46944.0,46943.0,0.78000701]
[1641203385592,0.02,46944.0,46943.0,0.60000701]
[1641203385993,0.02,46944.0,46943.0,0.42100701]
[1641203386596,0.02,46944.0,46943.0,0.60100701]
[1641203387196,0.02,46944.0,46943.0,0.42100701]
[1641203387598,0.02,46944.0,46943.0,0.60100701]
[1641203388597,0.02,46944.0,46943.0,0.48100701]
[1641203388798,0.02,46944.0,46943.0,0.75900701]
[1641203389600,0.02,46944.0,46943.0,0.57900701]
[1641203389802,0.02,46944.0,46943.0,0.75900701]
[1641203390001,0.02,46944.0,46943.0,0.57900701]
[1641203390202,0.02,46944.0,46943.0,0.60100701]
[1641203390804,0.02,46944.0,46943.0,0.30233567]
[1641203391007,0.04130968,46944.0,46943.0,0.162]
[1641203391703,0.04130968,46944.0,46937.0,0.14033567]
[1641203391904,0.02131092,46940.0,46937.0,0.14033567]
[1641203392103,0.10559092,46940.0,46937.0,0.14033567]
[1641203392704,0.29559092,46940.0,46937.0,0.14033567]
[1641203394005,0.10559092,46940.0,46937.0,0.14033567]
[1641203394806,0.29559092,46940.0,46937.0,0.14033567]
[1641203395408,1.118,46939.0,46937.0,0.14033567]
[1641203395710,0.02131273,46938.0,46932.0,0.14033567]
[1641203396708,0.09086977,46937.0,46932.0,0.14033567]
[1641203396910,1.20886977,46937.0,46919.0,2.26138304]
[1641203397107,0.14033567,46934.0,46921.0,0.18]
[1641203397408,1.118,46933.0,46921.0,0.18]
[1641203397608,1.118,46933.0,46919.0,2.40171871]
[1641203397808,0.14033567,46934.0,46927.0,0.32033567]
[1641203398009,0.14033567,46934.0,46927.0,0.14033567]
[1641203398809,1.118,46933.0,46927.0,0.14033567]
[1641203401114,1.309,46933.0,46927.0,0.14033567]
[1641203401512,1.309,46933.0,46927.0,0.32033567]
[1641203402114,1.118,46933.0,46927.0,0.32033567]
[1641203402314,1.118,46933.0,46927.0,0.14033567]
[1641203402816,1.309,46933.0,46927.0,0.14033567]
[1641203403016,0.02131651,46928.0,46919.0,1.9056]
[1641203403216,0.14033567,46920.0,46919.0,1.9056]
[1641203403417,0.14033567,46920.0,46917.0,0.35578304]
[1641203404018,0.14033567,46920.0,46913.0,0.35578304]
[1641203404316,0.14033567,46920.0,46917.0,0.18]
[1641203404719,0.32433567,46920.0,46913.0,0.35578304]
[1641203404918,0.32433567,46920.0,46910.0,0.37709955]
[1641203405118,0.32433567,46920.0,46917.0,0.18]
[1641203405318,0.32433567,46920.0,46910.0,0.37709955]
[1641203405519,0.32433567,46920.0,46913.0,0.18]
[1641203405919,0.32433567,46920.0,46917.0,0.18]
[1641203406321,0.32433567,46920.0,46910.0,0.37709955]
[1641203406522,0.32433567,46920.0,46917.0,0.18]
[1641203406821,0.29633567,46920.0,46910.0,0.37709955]
[1641203407322,0.29633567,46920.0,46917.0,0.18]
[1641203407924,0.29633567,46920.0,46910.0,0.37709955]
[1641203408138,0.14033567,46920.0,46917.0,0.18]
[1641203408938,0.33433567,46920.0,46917.0,0.18]
[1641203410138,0.14033567,46924.0,46917.0,0.18]
[1641203410339,0.14033567,46924.0,46920.0,0.18]
[1641203410739,0.33633567,46924.0,46920.0,0.18]
[1641203411539,0.33633567,46924.0,46923.0,0.18]
[1641203412040,0.14033567,46924.0,46915.0,0.14033567]